bitfinex-derivatives/quotes_BTCF0:USTF0_20210703
["timestamp","ask_amount","ask_price","bid_price","bid_amount"]
[1625287461832,1.22986585,33586.0,33584.0,1.06012074]
[1625287462231,1.22986585,33586.0,33585.0,0.00612477]
[1625287462331,1.6467135,33587.0,33585.0,0.32202769]
[1625287462782,1.6467135,33587.0,33585.0,0.31590292]
[1625287462884,1.2298802,33586.0,33585.0,0.31590292]
[1625287463386,1.2298802,33586.0,33585.0,0.14463431]
[1625287463785,1.2298802,33586.0,33585.0,0.20363431]
[1625287463885,1.2298802,33586.0,33585.0,0.31589487]
[1625287464184,1.2298802,33586.0,33585.0,0.65832491]
[1625287465237,1.52706849,33587.0,33585.0,0.5726906]
[1625287465685,1.22913871,33586.0,33585.0,0.14450744]
[1625287466238,1.28613871,33586.0,33585.0,0.14450744]
[1625287466737,1.22913871,33586.0,33585.0,0.14450744]
[1625287467591,1.22913871,33586.0,33585.0,0.059]
[1625287467688,1.28613871,33586.0,33585.0,0.059]
[1625287468841,1.22913871,33586.0,33585.0,0.059]
[1625287470446,1.28613871,33586.0,33585.0,0.059]
[1625287475561,2.6903406,33586.0,33585.0,0.059]
[1625287476263,1.28613871,33586.0,33585.0,0.059]
[1625287477364,0.057,33586.0,33585.0,0.059]
[1625287478014,1.28562663,33586.0,33585.0,0.059]
[1625287479419,1.28562663,33586.0,33585.0,0.06511247]
[1625287481674,1.50862663,33586.0,33585.0,0.00611247]
[1625287482124,2.91277808,33586.0,33585.0,0.00611247]
[1625287483125,1.50862663,33586.0,33585.0,0.00611247]
[1625287483275,1.50862663,33586.0,33585.0,0.06511247]
[1625287483428,1.50862663,33586.0,33585.0,0.00611247]
[1625287483526,1.50862663,33586.0,33585.0,0.06511247]
[1625287484429,1.45162663,33586.0,33585.0,0.06511247]
[1625287484530,1.28562663,33586.0,33585.0,0.06511247]
[1625287485481,1.28562663,33586.0,33585.0,0.00611247]
[1625287486184,2.68967557,33586.0,33585.0,0.00611247]
[1625287486586,2.68967557,33586.0,33585.0,0.06511247]
[1625287486785,1.28562663,33586.0,33585.0,0.06511247]
[1625287489838,1.28562663,33586.0,33585.0,0.00611247]
[1625287491591,1.29731007,33586.0,33585.0,0.00611247]
[1625287492194,2.70123549,33586.0,33585.0,0.00611247]
[1625287493698,2.70123549,33586.0,33585.0,0.06511247]
[1625287493797,2.70123549,33586.0,33585.0,0.00611247]
[1625287494851,2.70123549,33586.0,33585.0,0.06511247]
[1625287495953,2.76023549,33586.0,33585.0,0.00611247]
[1625287496858,2.76023549,33586.0,33585.0,0.06511247]
[1625287497005,2.70123549,33586.0,33585.0,0.06511247]
[1625287497956,2.68955205,33586.0,33585.0,0.06511247]
[1625287498206,1.28562663,33586.0,33585.0,0.06511247]
[1625287499758,1.28562663,33586.0,33581.0,0.461142]
[1625287499908,1.28562663,33586.0,33581.0,0.520142]
[1625287500209,1.28562663,33586.0,33582.0,0.00610771]
[1625287500359,1.22843173,33585.0,33582.0,0.00610771]
[1625287500859,0.24057544,33583.0,33582.0,0.00610771]
[1625287502112,0.24057544,33583.0,33582.0,0.06510771]
[1625287502213,0.24057544,33583.0,33582.0,0.00610771]
[1625287502764,0.24057544,33583.0,33582.0,0.06510771]
[1625287502865,0.24057544,33583.0,33582.0,0.00610771]
[1625287503216,0.24057544,33583.0,33582.0,0.06510771]
[1625287503316,0.24057544,33583.0,33582.0,0.00610771]
[1625287503567,0.24057544,33583.0,33582.0,4.27280771]
[1625287503918,0.24057544,33583.0,33582.0,0.00610771]
[1625287505875,0.24057544,33583.0,33582.0,0.34716746]
[1625287506428,0.24057544,33583.0,33582.0,5.29556746]
[1625287507576,0.24057544,33583.0,33582.0,5.4662101]
[1625287507776,0.24057544,33583.0,33582.0,0.5178101]
[1625287508529,1.47086144,33583.0,33582.0,0.85891313]
[1625287508877,1.47086144,33583.0,33582.0,6.18431313]
[1625287509579,1.47086144,33583.0,33582.0,0.85891313]
[1625287509981,1.47086144,33583.0,33582.0,1.20073668]
[1625287511684,2.87924674,33583.0,33582.0,2.22631516]
[1625287513538,2.87924674,33583.0,33582.0,6.63551516]
[1625287513639,2.87924674,33583.0,33582.0,2.22631516]
[1625287514993,2.93624674,33583.0,33582.0,2.22631516]
[1625287515544,2.93624674,33583.0,33582.0,1.20073668]
[1625287516094,4.52233873,33583.0,33582.0,1.20073668]
[1625287518551,4.58133873,33583.0,33582.0,1.20073668]
[1625287518951,9.39343873,33583.0,33582.0,1.20073668]
[1625287519054,4.58133873,33583.0,33582.0,1.20073668]
[1625287521006,4.52233873,33583.0,33582.0,1.20073668]
[1625287521257,4.52233873,33583.0,33582.0,5.49433668]
[1625287521964,4.52233873,33583.0,33582.0,1.20073668]
[1625287524115,4.52233873,33583.0,33582.0,2.22673319]
[1625287524669,4.58133873,33583.0,33582.0,2.22673319]
[1625287525320,4.58133873,33583.0,33582.0,1.20073668]
[1625287525919,4.78811873,33583.0,33582.0,1.20073668]
[1625287528776,4.72911873,33583.0,33582.0,1.20073668]
[1625287531530,4.72911873,33583.0,33582.0,2.22462941]
[1625287533132,4.72911873,33583.0,33582.0,1.20073668]
[1625287535032,4.72911873,33583.0,33582.0,2.22479586]
[1625287538295,3.14302674,33583.0,33582.0,2.22479586]
[1625287538394,2.93624674,33583.0,33582.0,2.22479586]
[1625287538795,4.52295462,33583.0,33582.0,2.22479586]
[1625287542402,4.52295462,33583.0,33582.0,1.20073668]
[1625287544505,4.52295462,33583.0,33582.0,2.22162377]
[1625287546709,4.58195462,33583.0,33582.0,2.22162377]
[1625287546809,4.64095462,33583.0,33582.0,2.22162377]
[1625287547159,4.64095462,33583.0,33582.0,0.34558761]
[1625287547459,4.65265542,33583.0,33582.0,0.34558761]
[1625287547661,4.65265542,33583.0,33582.0,0.00610771]
[1625287548260,4.64095462,33583.0,33582.0,0.00610771]
[1625287548561,4.65265588,33583.0,33581.0,0.00610724]
[1625287548862,4.30015515,33582.0,33581.0,0.00610724]
[1625287548961,4.41815515,33582.0,33581.0,0.00610724]
[1625287549364,4.40645383,33582.0,33580.0,0.00610738]
[1625287549914,4.23174373,33581.0,33580.0,0.00610738]
[1625287550018,4.34774373,33581.0,33580.0,0.00610738]
[1625287550116,4.40674373,33581.0,33580.0,0.00610738]
[1625287550416,4.40674373,33581.0,33579.0,0.00610762]
[1625287550664,4.40674373,33581.0,33578.0,0.00610765]
[1625287550815,0.057,33579.0,33578.0,0.00610765]
[1625287550966,0.175,33579.0,33578.0,0.00610765]
[1625287551163,0.175,33579.0,33577.0,0.00610765]
[1625287551266,0.48115088,33578.0,33577.0,0.00610765]
[1625287551363,0.59715088,33578.0,33577.0,0.00610765]
[1625287551464,0.65615088,33578.0,33577.0,0.00610765]
[1625287551767,4.88580655,33578.0,33577.0,0.00610765]
[1625287552669,4.88580655,33578.0,33576.0,0.0061062]
[1625287553370,4.28493506,33577.0,33576.0,0.0061062]
[1625287553471,4.65697506,33577.0,33576.0,0.0061062]
[1625287554773,4.65697506,33577.0,33575.0,0.00610629]
[1625287555275,0.24057544,33576.0,33575.0,0.00610629]
[1625287555377,0.41557544,33576.0,33575.0,0.00610629]
[1625287555476,4.64197251,33576.0,33575.0,0.00610629]
[1625287556480,3.05709562,33576.0,33575.0,0.00610629]
[1625287556879,3.05709562,33576.0,33574.0,0.3451722]
[1625287557131,3.05709562,33576.0,33575.0,0.00610623]
[1625287557332,0.41557544,33576.0,33575.0,0.00610623]
[1625287557932,5.14357544,33576.0,33575.0,0.00610623]
[1625287558032,0.41557544,33576.0,33575.0,0.00610623]
[1625287558133,4.64057654,33576.0,33575.0,0.00610623]
[1625287558433,4.64057654,33576.0,33573.0,0.00610647]
[1625287558985,2.63975033,33574.0,33573.0,0.00610647]
[1625287559087,2.75575033,33574.0,33573.0,0.00610647]
[1625287559185,2.81475033,33574.0,33573.0,0.00610647]
[1625287559286,3.05532577,33574.0,33572.0,0.00610657]
[1625287559485,3.05532577,33574.0,33573.0,0.00610657]
[1625287559736,3.05532577,33574.0,33572.0,0.00610657]
[1625287560488,2.69672781,33573.0,33572.0,0.00610657]
[1625287560589,2.81472781,33573.0,33572.0,0.00610657]
[1625287560689,2.81472781,33573.0,33571.0,0.33931191]
[1625287561241,2.81472781,33573.0,33572.0,0.00610766]
[1625287561340,3.05530325,33573.0,33572.0,0.00610766]
[1625287562043,3.05530325,33573.0,33570.0,0.34524219]
[1625287562293,3.05530325,33573.0,33571.0,0.00610768]
[1625287562494,0.41557544,33573.0,33571.0,0.00610768]
[1625287562846,0.41557544,33573.0,33570.0,0.00610774]
[1625287562995,2.63881254,33572.0,33570.0,0.00610774]
[1625287563094,0.057,33571.0,33570.0,0.00610774]
[1625287563345,2.99440284,33571.0,33569.0,0.00610774]
[1625287563697,2.69481617,33570.0,33569.0,0.00610774]
[1625287563796,2.97135617,33570.0,33569.0,0.00610774]
[1625287565301,3.21193161,33570.0,33569.0,0.00610774]
[1625287565451,1.80510804,33570.0,33569.0,0.00610774]
[1625287565701,1.80510804,33570.0,33568.0,0.00610779]
[1625287566553,1.28760997,33569.0,33568.0,0.00610779]
[1625287568058,1.28760997,33569.0,33567.0,0.00610767]
[1625287568158,1.28760997,33569.0,33567.0,0.34427564]
[1625287568362,1.34660997,33569.0,33568.0,0.00610773]
[1625287568562,0.116,33569.0,33568.0,0.00610773]
[1625287568862,0.116,33569.0,33567.0,0.00610801]
[1625287568961,4.8195,33568.0,33567.0,0.00610801]
[1625287569060,4.8765,33568.0,33567.0,0.00610801]
[1625287569261,4.9355,33568.0,33567.0,0.00610801]
[1625287569362,0.48115088,33564.0,33563.0,0.39348315]
[1625287569460,0.53815088,33564.0,33563.0,0.39348315]
[1625287569563,0.59715088,33564.0,33563.0,0.39348315]
[1625287569661,0.59715088,33564.0,33563.0,0.06509822]
[1625287583340,0.54015088,33564.0,33563.0,0.06509822]
[1625287583441,0.48115088,33564.0,33563.0,0.06509822]
[1625287584144,0.48115088,33564.0,33563.0,4.83989822]
[1625287584891,0.54015088,33564.0,33563.0,0.06509822]
[1625287587000,0.54015088,33564.0,33563.0,0.57333111]
[1625287587301,0.59715088,33564.0,33563.0,0.06509822]
[1625287591306,0.54015088,33564.0,33563.0,0.06509822]
[1625287591656,0.54015088,33564.0,33563.0,0.34389822]
[1625287593558,0.59715088,33564.0,33563.0,0.34389822]
[1625287597068,0.54015088,33564.0,33563.0,0.34389822]
[1625287597569,0.59715088,33564.0,33563.0,0.34389822]
[1625287598319,0.54015088,33564.0,33563.0,0.34389822]
[1625287598620,0.59715088,33564.0,33563.0,0.34389822]
[1625287600373,0.54015088,33564.0,33563.0,0.34389822]
[1625287600675,0.59715088,33564.0,33563.0,0.34389822]
[1625287601027,0.54015088,33564.0,33563.0,0.34389822]
[1625287602633,0.59715088,33564.0,33563.0,0.34389822]
[1625287603737,0.54015088,33564.0,33563.0,0.34389822]
[1625287604236,0.59715088,33564.0,33563.0,0.34389822]
[1625287604438,1.82764458,33564.0,33563.0,0.34389822]
[1625287605591,1.82764458,33564.0,33563.0,0.06509822]
[1625287607100,1.82764458,33564.0,33563.0,0.57444646]
[1625287608101,1.82764458,33564.0,33563.0,0.06509822]
[1625287608300,1.82764458,33564.0,33563.0,0.00609822]
[1625287608398,1.82764458,33564.0,33563.0,0.51559359]
[1625287608700,3.23556468,33564.0,33563.0,0.51559359]
[1625287614268,3.17856468,33564.0,33563.0,0.51559359]
[1625287615069,3.23556468,33564.0,33563.0,0.51559359]
[1625287615722,3.23556468,33564.0,33563.0,0.00609822]
[1625287616172,3.23556468,33564.0,33563.0,0.51675819]
[1625287618329,7.18526468,33564.0,33563.0,0.51675819]
[1625287618430,8.77109553,33564.0,33563.0,0.00609822]
[1625287618931,8.77109553,33564.0,33562.0,0.00609555]
[1625287619230,8.77109553,33564.0,33563.0,0.00609558]
[1625287619733,8.77109553,33564.0,33562.0,0.00609558]
[1625287620285,4.22947629,33563.0,33561.0,0.00609574]
[1625287620385,0.057,33562.0,33561.0,0.00609574]
[1625287620534,0.057,33562.0,33560.0,0.51072148]
[1625287620634,0.116,33562.0,33560.0,0.51072148]
[1625287620735,4.34547116,33562.0,33561.0,0.00609575]
[1625287621185,4.34547116,33562.0,33561.0,0.23108575]
[1625287621636,4.5860466,33562.0,33561.0,0.23108575]
[1625287622089,4.5860466,33562.0,33561.0,0.74127398]
[1625287622842,3.00001694,33562.0,33561.0,0.74127398]
[1625287625448,4.5863404,33562.0,33561.0,0.74127398]
[1625287626000,4.5293404,33562.0,33561.0,0.74127398]
[1625287626652,2.94301694,33562.0,33561.0,0.74127398]
[1625287631012,6.59051694,33562.0,33561.0,0.74127398]
[1625287631567,2.94301694,33562.0,33561.0,0.74127398]
[1625287632166,6.59051694,33562.0,33561.0,0.74127398]
[1625287632417,6.64751694,33562.0,33561.0,0.74127398]
[1625287632517,6.64751694,33562.0,33561.0,0.51628398]
[1625287632915,3.00001694,33562.0,33561.0,0.51628398]
[1625287633818,4.58601045,33562.0,33561.0,0.51628398]
[1625287633918,4.52901045,33562.0,33561.0,0.51628398]
[1625287634325,2.94301694,33562.0,33561.0,0.51628398]
[1625287635520,2.94301694,33562.0,33561.0,0.51628514]
[1625287636722,2.94301694,33562.0,33561.0,0.00609691]
[1625287637775,2.88401694,33562.0,33561.0,0.00609691]
[1625287637975,2.94301694,33562.0,33561.0,0.00609691]
[1625287638225,2.94301694,33562.0,33561.0,5.15919691]
[1625287638477,2.94301694,33562.0,33561.0,7.37756583]
[1625287639027,2.19241694,33562.0,33561.0,7.37756583]
[1625287639128,2.19241694,33562.0,33561.0,2.22446583]
[1625287639228,2.13341694,33562.0,33561.0,2.28346583]
[1625287639480,2.13341694,33562.0,33561.0,2.29228949]
[1625287639579,0.24057544,33562.0,33561.0,3.48513566]
[1625287639829,0.24057544,33562.0,33561.0,3.7847111]
[1625287640077,0.24057544,33562.0,33561.0,3.77588744]
[1625287640180,0.24057544,33562.0,33561.0,5.30761201]
[1625287640678,0.24057544,33562.0,33561.0,5.31643517]
[1625287641931,0.24057544,33562.0,33561.0,5.30761201]
[1625287643134,0.24057544,33564.0,33561.0,5.30761201]
[1625287643283,0.24057544,33564.0,33563.0,4.04081]
[1625287643387,0.24057544,33564.0,33563.0,4.09981]
[1625287643533,0.24057544,33564.0,33563.0,0.40831]
[1625287643637,0.24057544,33564.0,33563.0,5.28558102]
[1625287643734,0.24057544,33570.0,33563.0,5.52615646]
[1625287643939,0.29957544,33570.0,33563.0,5.52615646]
[1625287644035,0.29957544,33570.0,33569.0,1.19046467]
[1625287644385,0.29957544,33570.0,33569.0,0.51629443]
[1625287644838,0.29957544,33570.0,33569.0,0.00609529]
[1625287645741,0.29957544,33570.0,33569.0,0.24667073]
[1625287650300,0.29957544,33570.0,33569.0,0.41673921]
[1625287654112,1.70739004,33570.0,33569.0,0.41673921]
[1625287655214,1.70739004,33570.0,33569.0,0.24667073]
[1625287663038,1.70739004,33570.0,33569.0,0.41629648]
[1625287664641,0.29957544,33570.0,33569.0,0.41629648]
[1625287665043,0.29957544,33570.0,33569.0,0.47529648]
[1625287665543,0.29957544,33570.0,33569.0,0.41629648]
[1625287665745,0.29957544,33570.0,33569.0,0.75523367]
[1625287666244,0.29957544,33570.0,33569.0,0.41619449]
[1625287669200,0.29957544,33570.0,33569.0,5.69339449]
[1625287669904,0.29957544,33570.0,33569.0,0.41619449]
[1625287670654,0.29957544,33570.0,33569.0,0.47519449]
[1625287670907,0.29957544,33570.0,33569.0,0.41619449]
[1625287671005,0.29957544,33570.0,33569.0,0.75484661]
[1625287671605,0.29957544,33570.0,33569.0,0.41607309]
[1625287677770,0.29957544,33570.0,33569.0,0.47507309]
[1625287678824,0.29957544,33570.0,33569.0,1.49069718]
[1625287681227,0.24057544,33570.0,33569.0,1.49069718]
[1625287681630,0.24057544,33570.0,33569.0,2.50587164]
[1625287681981,0.24057544,33570.0,33569.0,5.04200093]
[1625287682431,0.24057544,33570.0,33569.0,5.05082258]
[1625287683633,0.24057544,33570.0,33569.0,5.10982258]
[1625287685191,0.24057544,33570.0,33569.0,5.05082258]
[1625287685591,0.24057544,33570.0,33569.0,5.04200093]
[1625287687844,0.24057544,33570.0,33569.0,5.10100093]
[1625287688395,0.24057544,33570.0,33569.0,5.04200093]
[1625287688998,0.24057544,33570.0,33569.0,5.10100093]
[1625287689948,0.24057544,33570.0,33569.0,5.04200093]
[1625287692698,0.24057544,33570.0,33569.0,5.10100093]
[1625287694655,0.24057544,33570.0,33569.0,6.62293137]
[1625287695511,0.48115088,33574.0,33569.0,6.62293137]
[1625287695608,0.24057544,33578.0,33569.0,6.62293137]
[1625287696009,0.24057544,33578.0,33570.0,0.00609337]
[1625287696110,0.24057544,33578.0,33577.0,0.68030088]
[1625287696463,0.24057544,33578.0,33577.0,1.86425216]
[1625287696611,0.24057544,33578.0,33577.0,1.87034538]
[1625287696912,0.24057544,33578.0,33577.0,2.88572589]
[1625287697064,1.64669264,33583.0,33577.0,2.88572589]
[1625287697163,1.64669264,33583.0,33577.0,2.94472589]
[1625287697262,1.64669264,33583.0,33577.0,3.00372589]
[1625287697563,0.24057544,33583.0,33577.0,4.18825519]
[1625287697663,0.24057544,33583.0,33578.0,0.00609211]
[1625287697763,0.24057544,33583.0,33578.0,0.12409211]
[1625287698114,0.24057544,33587.0,33582.0,4.96791057]
[1625287698213,0.29757544,33587.0,33582.0,5.08591057]
[1625287698415,0.24057544,33587.0,33583.0,0.00609182]
[1625287698517,0.24057544,33587.0,33586.0,1.41774489]
[1625287698616,0.24057544,33587.0,33586.0,1.53574489]
[1625287698918,0.24057544,33587.0,33586.0,1.54183668]
[1625287699471,0.24057544,33587.0,33586.0,1.48283668]
[1625287699572,0.29757544,33587.0,33586.0,1.48283668]
[1625287699822,0.29757544,33587.0,33586.0,1.42383668]
[1625287699921,0.29757544,33587.0,33586.0,0.74886817]
[1625287700124,0.29757544,33587.0,33586.0,0.98944361]
[1625287700423,0.29757544,33587.0,33586.0,0.56756736]
[1625287700623,0.29757544,33587.0,33586.0,0.62656736]
[1625287700975,0.29757544,33587.0,33586.0,4.30526736]
[1625287701277,0.29757544,33587.0,33586.0,4.47395368]
[1625287702585,0.29757544,33587.0,33586.0,0.62656736]
[1625287702685,0.29757544,33587.0,33586.0,0.56756736]
[1625287702836,0.29757544,33587.0,33586.0,0.56147557]
[1625287702936,0.29757544,33587.0,33586.0,0.32492557]
[1625287703138,0.29757544,33587.0,33586.0,0.24057544]
[1625287704138,0.29757544,33587.0,33586.0,0.45176544]
[1625287704489,0.29757544,33587.0,33586.0,5.22446544]
[1625287704790,0.29757544,33587.0,33586.0,5.23055788]
[1625287705389,0.29757544,33587.0,33586.0,0.45785788]
[1625287705639,0.29757544,33587.0,33586.0,0.45176544]
[1625287707695,0.29757544,33587.0,33586.0,0.45785946]
[1625287707996,0.24057544,33587.0,33586.0,0.45785946]
[1625287708497,0.29757544,33587.0,33586.0,0.45785946]
[1625287711953,0.29757544,33587.0,33586.0,4.64855946]
[1625287713509,0.29757544,33587.0,33586.0,0.45785946]
[1625287714010,0.24057544,33587.0,33586.0,5.72675946]
[1625287714211,0.24057544,33587.0,33586.0,0.45785946]
[1625287714865,0.29757544,33587.0,33586.0,0.45785946]
[1625287716517,0.29757544,33587.0,33586.0,4.28845946]
[1625287718927,0.29757544,33587.0,33586.0,0.45785946]
[1625287722436,0.29757544,33587.0,33586.0,5.46815946]
[1625287723334,0.29757544,33587.0,33586.0,0.45785946]
[1625287726293,0.29757544,33587.0,33586.0,4.40025946]
[1625287726795,0.29757544,33587.0,33586.0,0.45785946]
[1625287728099,0.29757544,33587.0,33586.0,4.12985946]
[1625287731957,0.29757544,33587.0,33586.0,0.45785946]
[1625287733913,0.29757544,33587.0,33586.0,5.35095946]
[1625287735214,1.70301924,33587.0,33586.0,5.35095946]
[1625287735614,1.70301924,33587.0,33586.0,0.45785946]
[1625287736920,1.70301924,33587.0,33586.0,0.5434032]
[1625287738076,1.70301924,33587.0,33586.0,0.71445811]
[1625287739227,1.70301924,33587.0,33586.0,0.97170374]
[1625287739779,1.70301924,33587.0,33586.0,1.0574156]
[1625287740230,1.70301924,33587.0,33586.0,0.97170374]
[1625287741783,1.90642924,33587.0,33586.0,0.5199383]
[1625287741885,1.96542924,33587.0,33586.0,0.86319988]
[1625287741983,2.02442924,33587.0,33586.0,0.86319988]
[1625287742083,2.03614777,33587.0,33586.0,0.86319988]
[1625287742284,6.72334777,33587.0,33586.0,0.86319988]
[1625287742384,8.3065647,33587.0,33586.0,0.00609402]
[1625287742484,8.54714014,33587.0,33586.0,0.00609402]
[1625287742685,8.54714014,33587.0,33582.0,0.00609746]
[1625287742837,10.30666279,33587.0,33582.0,0.00609746]
[1625287742938,10.30666279,33587.0,33586.0,0.00609768]
[1625287743185,0.01172002,33586.0,33583.0,0.00609783]
[1625287743386,0.057,33585.0,33583.0,0.00609783]
[1625287743535,0.175,33585.0,33578.0,0.25793248]
[1625287743737,0.01172085,33584.0,33579.0,0.00609844]
[1625287743836,0.12972085,33584.0,33579.0,0.00609844]
[1625287743990,0.057,33583.0,33576.0,0.08603576]
[1625287744187,0.175,33583.0,33576.0,0.08603576]
[1625287744289,1.75980529,33578.0,33577.0,0.00608924]
[1625287744390,2.52441617,33578.0,33577.0,0.00608924]
[1625287744490,2.88299161,33578.0,33577.0,0.00608924]
[1625287744590,7.95979161,33578.0,33577.0,0.00608924]
[1625287744741,12.1952121,33578.0,33572.0,0.0060893]
[1625287744992,12.1952121,33578.0,33577.0,0.00608927]
[1625287745243,2.89473019,33578.0,33577.0,0.00608927]
[1625287745342,0.01173858,33577.0,33573.0,0.0060893]
[1625287745443,0.057,33576.0,33573.0,0.0060893]
[1625287745545,0.057,33576.0,33570.0,0.00608932]
[1625287745645,0.175,33576.0,33570.0,0.00608932]
[1625287745844,0.057,33573.0,33569.0,0.60277127]
[1625287745945,0.116,33573.0,33569.0,0.60277127]
[1625287746094,0.116,33573.0,33570.0,0.00608933]
[1625287746095,0.12773862,33573.0,33570.0,0.00608933]
[1625287746194,1.71036911,33573.0,33570.0,0.00608933]
[1625287746395,0.01173852,33572.0,33570.0,0.00608933]
[1625287746496,3.17592443,33571.0,33570.0,0.00608933]
[1625287746598,3.23492443,33571.0,33570.0,0.00608933]
[1625287747649,3.45232443,33571.0,33570.0,0.00608933]
[1625287747801,2.04552359,33571.0,33570.0,0.00608933]
[1625287748150,3.45145556,33571.0,33569.0,0.25824274]
[1625287748502,1.23020893,33570.0,33569.0,0.25824274]
[1625287748602,1.34620893,33570.0,33569.0,0.25824274]
[1625287749003,1.34620893,33570.0,33569.0,0.26433834]
[1625287749106,1.34620893,33570.0,33569.0,0.0060956]
[1625287750207,1.34620893,33570.0,33569.0,0.09210398]
[1625287750456,1.28720893,33570.0,33569.0,0.09210398]
[1625287750555,0.057,33570.0,33569.0,1.72442957]
[1625287750655,0.057,33570.0,33569.0,1.78342957]
[1625287750756,0.48115088,33571.0,33569.0,2.05918957]
[1625287751105,0.48115088,33571.0,33570.0,0.00609458]
[1625287751205,0.48115088,33571.0,33570.0,0.06509458]
[1625287751506,0.48115088,33571.0,33570.0,1.78206026]
[1625287752461,0.48115088,33571.0,33570.0,2.0226357]
[1625287752858,0.53815088,33571.0,33570.0,0.99245629]
[1625287753510,0.48115088,33571.0,33570.0,0.99245629]
[1625287754312,0.48115088,33571.0,33570.0,2.02237385]
[1625287754564,0.53815088,33571.0,33570.0,2.02237385]
[1625287755314,0.53815088,33571.0,33570.0,0.99245629]
[1625287757169,0.48115088,33571.0,33570.0,0.99245629]
[1625287758419,0.48115088,33571.0,33570.0,0.98636171]
[1625287758571,0.48115088,33571.0,33570.0,0.99245615]
[1625287759524,0.48115088,33571.0,33570.0,2.02214932]
[1625287760474,0.48115088,33571.0,33570.0,2.08114932]
[1625287760674,0.48115088,33571.0,33570.0,2.02214932]
[1625287760823,0.48115088,33571.0,33570.0,2.01605488]
[1625287760975,0.48115088,33571.0,33570.0,2.02214897]
[1625287761224,0.24057544,33573.0,33570.0,2.02214897]
[1625287761527,0.24057544,33573.0,33571.0,0.00609404]
[1625287761625,0.24057544,33573.0,33572.0,0.68622314]
[1625287761725,0.24057544,33573.0,33572.0,5.80962314]
[1625287762028,0.24057544,33573.0,33572.0,5.81571716]
[1625287762528,0.24057544,33573.0,33572.0,6.0562926]
[1625287762678,0.24057544,33573.0,33572.0,7.08520061]
[1625287762778,0.24057544,33573.0,33572.0,7.14420061]
[1625287763181,0.24057544,33573.0,33572.0,7.08520061]
[1625287763631,0.24057544,33573.0,33572.0,1.96180061]
[1625287764832,0.24057544,33573.0,33572.0,3.1622397]
[1625287765385,0.24057544,33573.0,33572.0,1.96180061]
[1625287766685,0.24057544,33573.0,33572.0,3.1627011]
[1625287770897,0.24057544,33573.0,33572.0,3.2217011]
[1625287776258,0.24057544,33573.0,33572.0,3.1627011]
[1625287779615,0.24057544,33573.0,33572.0,4.54125403]
[1625287780266,0.24057544,33573.0,33572.0,3.1627011]
[1625287787179,0.29757544,33573.0,33572.0,3.1627011]
[1625287787278,0.49689544,33573.0,33572.0,3.1627011]
[1625287787529,0.61489544,33573.0,33572.0,3.1627011]
[1625287788030,1.8448311,33573.0,33572.0,0.50659906]
[1625287788681,3.25060939,33573.0,33572.0,0.24666946]
[1625287789488,3.25060939,33573.0,33572.0,0.00609402]
[1625287789839,3.25060939,33573.0,33571.0,0.00608438]
[1625287790139,3.25060939,33573.0,33572.0,0.0060844]
[1625287790288,3.25060939,33573.0,33571.0,0.0060845]
[1625287790392,2.63576355,33572.0,33571.0,0.0060845]
[1625287790538,2.75176355,33572.0,33571.0,0.0060845]
[1625287790639,2.81076355,33572.0,33571.0,0.0060845]
[1625287790741,3.05133899,33572.0,33571.0,0.0060845]
[1625287790840,3.05133899,33572.0,33569.0,0.00608434]
[1625287790995,3.05133899,33572.0,33569.0,0.26674959]
[1625287791242,3.05133899,33572.0,33569.0,0.09297276]
[1625287791243,2.6926331,33570.0,33569.0,0.09297276]
[1625287791340,2.7516331,33570.0,33569.0,0.09297276]
[1625287791441,2.7516331,33570.0,33569.0,0.08688842]
[1625287791642,2.7516331,33570.0,33569.0,0.00608442]
[1625287792442,2.7516331,33570.0,33568.0,0.00608446]
[1625287792645,2.7516331,33570.0,33568.0,0.26672954]
[1625287792745,0.29757544,33569.0,33568.0,0.26672954]
[1625287792846,0.35657544,33569.0,33568.0,0.26672954]
[1625287793097,1.58649617,33569.0,33568.0,0.26672954]
[1625287793999,2.9923137,33569.0,33568.0,0.26672954]
[1625287796455,2.9923137,33569.0,33568.0,0.61434461]
[1625287797353,2.9923137,33569.0,33568.0,0.26672954]
[1625287798353,2.9923137,33569.0,33568.0,0.61439086]
[1625287798906,2.9923137,33569.0,33568.0,0.52750917]
[1625287799008,2.9353137,33569.0,33568.0,0.52750917]
[1625287799309,1.52949617,33569.0,33568.0,0.70114503]
[1625287799858,1.52949617,33569.0,33568.0,1.74357466]
[1625287799859,0.29957544,33569.0,33568.0,1.74357466]
[1625287800308,0.35657544,33569.0,33568.0,1.74357466]
[1625287800409,1.58758279,33569.0,33568.0,1.74357466]
[1625287801461,1.78567279,33569.0,33568.0,1.74357466]
[1625287801913,1.78567279,33569.0,33568.0,0.70114503]
[1625287804368,3.19238597,33569.0,33568.0,0.35392517]
[1625287806172,3.19238597,33569.0,33568.0,0.52764938]
[1625287806371,3.19238597,33569.0,33568.0,0.52156492]
[1625287806572,3.19238597,33569.0,33568.0,0.52765033]
[1625287807726,3.19238597,33569.0,33568.0,0.61434599]
[1625287808175,3.19238597,33569.0,33568.0,0.26650528]
[1625287809726,3.19238597,33569.0,33568.0,0.09278107]
[1625287810279,3.19238597,33569.0,33568.0,0.26627848]
[1625287811030,3.19238597,33569.0,33568.0,0.09278107]
[1625287811430,3.19238597,33569.0,33568.0,0.61350758]
[1625287811932,3.19238597,33569.0,33568.0,0.52681192]
[1625287812482,3.19238597,33569.0,33568.0,0.6135772]
[1625287812982,3.19238597,33569.0,33568.0,0.09285069]
[1625287815041,3.19238597,33569.0,33568.0,0.00608541]
[1625287815495,3.19238597,33569.0,33568.0,0.09298907]
[1625287815943,3.19238597,33569.0,33568.0,0.00608541]
[1625287819048,6.77198597,33569.0,33568.0,0.00608541]
[1625287819149,3.19238597,33569.0,33568.0,0.00608541]
[1625287819253,3.25138597,33569.0,33568.0,0.00608541]
[1625287819751,3.26313345,33569.0,33568.0,0.00608541]
[1625287820003,4.84458401,33569.0,33567.0,0.00608497]
[1625287820255,4.84458401,33569.0,33568.0,0.00608515]
[1625287820456,2.20686348,33569.0,33568.0,0.00608515]
[1625287820604,2.20686348,33569.0,33565.0,0.00608522]
[1625287820804,5.1501,33566.0,33565.0,0.00608522]
[1625287820905,5.50667544,33566.0,33565.0,0.00608522]
[1625287821005,3.0513584,33566.0,33565.0,0.00608522]
[1625287821657,3.06310713,33566.0,33565.0,0.00608522]
[1625287821858,4.64440082,33566.0,33565.0,0.00608522]
[1625287822106,4.64440082,33566.0,33562.0,0.00608579]
[1625287822408,4.63265209,33566.0,33562.0,0.00608579]
[1625287822656,0.01174919,33565.0,33561.0,0.00608602]
[1625287822759,0.057,33562.0,33561.0,0.00608602]
[1625287822959,0.35657544,33562.0,33560.0,0.61100296]
[1625287823056,0.41557544,33562.0,33560.0,0.61100296]
[1625287823158,0.41557544,33562.0,33561.0,0.00608588]
[1625287823309,3.05123469,33562.0,33561.0,0.00608588]
[1625287823760,1.64556147,33562.0,33561.0,0.00608588]
[1625287824212,3.05080522,33562.0,33561.0,0.00608588]
[1625287825817,3.05080522,33562.0,33560.0,0.0060858]
[1625287826069,3.24571522,33562.0,33560.0,0.09340247]